bitfinex-derivatives/quotes_BTCF0:USTF0_20250327
["timestamp","ask_amount","ask_price","bid_price","bid_amount"]
[1743101676405,0.0976318,87315.0,87314.0,0.1490297]
[1743101676803,0.0653318,87315.0,87314.0,0.1490297]
[1743101677013,0.0328318,87315.0,87314.0,0.1825297]
[1743101677202,0.1473802,87315.0,87314.0,0.1825297]
[1743101677600,0.0328318,87315.0,87314.0,0.1825297]
[1743101677805,0.1473802,87315.0,87314.0,0.1825297]
[1743101678001,0.0328318,87315.0,87314.0,0.1825297]
[1743101678995,0.1473802,87315.0,87314.0,0.1490297]
[1743101679207,0.2141802,87315.0,87314.0,0.1490297]
[1743101679901,0.2141802,87315.0,87314.0,0.1152297]
[1743101681709,0.2141802,87315.0,87314.0,0.1495297]
[1743101682315,0.0996318,87315.0,87314.0,0.1495297]
[1743101682912,0.2141802,87315.0,87314.0,0.1495297]
[1743101683812,0.0996318,87315.0,87314.0,0.1495297]
[1743101684012,0.2141802,87315.0,87314.0,0.1495297]
[1743101685111,0.0996318,87315.0,87314.0,0.1495297]
[1743101685309,0.0328318,87315.0,87314.0,0.1822297]
[1743101685510,0.17108814,87323.0,87322.0,0.1145392]
[1743101685814,0.18344554,87339.0,87338.0,0.1145183]
[1743101686013,0.1717842,87339.0,87338.0,0.1151583]
[1743101686310,0.1724242,87339.0,87338.0,0.1151583]
[1743101687214,0.2296847,87339.0,87338.0,0.1151583]
[1743101687714,0.2296847,87339.0,87338.0,0.1827583]
[1743101688217,0.00064,87339.0,87338.0,0.19446982]
[1743101688409,0.1145908,87344.0,87343.0,0.1145117]
[1743101688609,0.1152308,87344.0,87343.0,0.1151517]
[1743101688809,0.1479308,87344.0,87343.0,0.1490517]
[1743101689316,0.1479308,87344.0,87343.0,0.16380223]
[1743101689515,0.1529308,87344.0,87343.0,0.16380223]
[1743101689717,0.28709327,87344.0,87343.0,0.19749948]
[1743101690112,0.29209327,87344.0,87343.0,0.19749948]
[1743101690316,0.29209327,87344.0,87343.0,0.1827517]
[1743101693519,0.1892308,87344.0,87343.0,0.1827517]
[1743101701432,0.07472,87344.0,87343.0,0.1827517]
[1743101701832,0.1892304,87344.0,87343.0,0.1827517]
[1743101702138,0.1892304,87344.0,87343.0,0.1151517]
[1743101702435,0.1891504,87344.0,87343.0,0.1151517]
[1743101702634,0.1891504,87344.0,87343.0,0.00064]
[1743101702824,0.1145156,87340.0,87339.0,0.0572584]
[1743101703024,0.1145156,87340.0,87339.0,0.0578984]
[1743101703237,0.17741561,87340.0,87339.0,0.0578984]
[1743101703438,0.17741561,87340.0,87339.0,0.00064]
[1743101704036,0.18241561,87340.0,87339.0,0.00064]
[1743101704230,0.18241561,87340.0,87339.0,0.1151569]
[1743101705033,0.18641561,87340.0,87339.0,0.1151569]
[1743101709234,0.18641561,87340.0,87320.0,0.56399547]
[1743101709235,0.1145274,87331.0,87330.0,0.0001718]
[1743101709438,0.1153274,87331.0,87330.0,0.13001247]
[1743101709635,0.2101274,87331.0,87330.0,0.13061883]
[1743101709829,0.2101274,87331.0,87330.0,0.13001883]
[1743101710534,0.2101274,87331.0,87330.0,0.1153005]
[1743101710738,0.2131274,87331.0,87330.0,0.1775005]
[1743101711244,0.2131274,87331.0,87330.0,0.1466005]
[1743101711437,0.2131274,87331.0,87330.0,0.16136452]
[1743101711637,0.2151274,87331.0,87330.0,0.16136452]
[1743101712138,0.22649643,87331.0,87330.0,0.01553582]
[1743101712335,0.22649643,87331.0,87330.0,0.01553298]
[1743101712536,0.22649643,87331.0,87330.0,0.01493298]
[1743101712736,0.22649643,87331.0,87330.0,0.01553298]
[1743101713142,0.22649643,87331.0,87330.0,0.0007718]
[1743101713445,0.22649643,87331.0,87330.0,0.01555061]
[1743101714732,0.22649643,87331.0,87330.0,0.13007931]
[1743101715745,0.22649643,87331.0,87330.0,0.16247931]
[1743101717844,0.58729643,87331.0,87330.0,0.0007718]
[1743101718045,0.1145406,87321.0,87320.0,0.20319547]
[1743101718233,0.1154606,87321.0,87320.0,0.21869045]
[1743101718438,0.2121606,87321.0,87320.0,0.24900014]
[1743101718745,0.2121606,87321.0,87320.0,0.28110014]
[1743101718746,0.22362665,87321.0,87320.0,0.28110014]
[1743101718944,0.22362665,87321.0,87320.0,0.39564204]
[1743101720444,0.22362665,87321.0,87320.0,0.36534204]
[1743101721046,0.22362665,87321.0,87320.0,0.35047737]
[1743101721343,0.22362665,87321.0,87320.0,0.31837737]
[1743101721751,0.22362665,87321.0,87320.0,0.1151819]
[1743101721938,0.22362665,87321.0,87320.0,0.00064]
[1743101722546,0.22362665,87321.0,87320.0,0.1151819]
[1743101722743,0.22362665,87321.0,87320.0,0.1480819]
[1743101722943,0.22362665,87321.0,87320.0,0.1802819]
[1743101723938,0.22362665,87321.0,87320.0,0.00064]
[1743101725154,0.22362665,87321.0,87320.0,0.1151819]
[1743101725746,0.22362665,87321.0,87320.0,0.1471819]
[1743101725947,0.22362665,87321.0,87320.0,0.1796819]
[1743101727951,0.22362665,87321.0,87320.0,0.03264]
[1743101729058,0.22362665,87321.0,87320.0,0.1471819]
[1743101729257,0.22362665,87321.0,87320.0,0.1796819]
[1743101730555,0.22362665,87321.0,87320.0,0.03264]
[1743101730955,0.22362665,87321.0,87320.0,0.1471819]
[1743101731162,0.22362665,87321.0,87320.0,0.03264]
[1743101733058,0.22362665,87321.0,87320.0,0.1471819]
[1743101734051,0.22362665,87321.0,87320.0,0.03264]
[1743101735460,0.22362665,87321.0,87320.0,0.1471819]
[1743101735655,0.22362665,87321.0,87320.0,0.1777819]
[1743101740058,0.58442665,87321.0,87320.0,0.06324]
[1743101740357,0.114551,87313.0,87310.0,0.1145546]
[1743101740559,0.11551101,87313.0,87312.0,0.0007718]
[1743101740764,0.11551101,87313.0,87312.0,0.1153242]
[1743101740765,0.17791101,87313.0,87312.0,0.1153242]
[1743101741062,0.17791101,87313.0,87312.0,0.1474242]
[1743101741562,0.14631101,87313.0,87312.0,0.1474242]
[1743101742060,0.17791101,87313.0,87312.0,0.1474242]
[1743101742258,0.17791101,87313.0,87312.0,0.0328718]
[1743101742458,0.17791101,87313.0,87312.0,0.1793242]
[1743101743959,0.17791101,87313.0,87312.0,0.0647718]
[1743101744158,0.17791101,87313.0,87312.0,0.0326718]
[1743101744662,0.17791101,87313.0,87312.0,0.0007718]
[1743101749271,0.17791101,87313.0,87312.0,0.0001718]
[1743101749458,0.17791101,87313.0,87312.0,0.0008518]
[1743101751075,0.17791101,87313.0,87312.0,0.0001718]
[1743101756688,0.17791101,87313.0,87294.0,0.3608]
[1743101756689,0.17789114,87313.0,87294.0,0.3608]
[1743101756895,0.1145747,87295.0,87294.0,0.3614]
[1743101757196,0.1154947,87295.0,87294.0,0.0006]
[1743101757492,0.1154947,87295.0,87294.0,0.115176]
[1743101758082,0.1490947,87295.0,87294.0,0.183176]
[1743101758785,0.16134288,87295.0,87294.0,0.183176]
[1743101758991,0.1500947,87295.0,87294.0,0.183176]
[1743101759193,0.1164947,87295.0,87294.0,0.543976]
[1743101759688,0.002,87295.0,87294.0,0.5553294]
[1743101759888,0.1174947,87295.0,87294.0,0.543976]
[1743101760082,0.1184147,87295.0,87294.0,0.543976]
[1743101760284,0.1174947,87295.0,87294.0,0.543976]
[1743101763887,0.1174947,87295.0,87294.0,0.183176]
[1743101764384,0.1535947,87295.0,87294.0,0.183176]
[1743101764587,0.1174947,87295.0,87294.0,0.543976]
[1743101764786,0.00292,87295.0,87294.0,0.543976]
[1743101765089,0.002,87295.0,87294.0,0.543976]
[1743101766390,8e-05,87297.0,87294.0,0.543976]
[1743101766391,8e-05,87297.0,87296.0,0.1145734]
[1743101766697,0.1145657,87302.0,87301.0,0.1145668]
[1743101766903,0.21836639,87302.0,87301.0,0.2160868]
[1743101767788,0.10380069,87302.0,87301.0,0.2160868]
[1743101768186,0.21836619,87302.0,87301.0,0.2160868]
[1743101768790,8e-05,87311.0,87307.0,0.057279]
[1743101768985,0.00072,87311.0,87310.0,0.3608]
[1743101769185,0.1731111,87311.0,87310.0,0.475955]
[1743101769393,0.1724711,87311.0,87310.0,0.475955]
[1743101770694,0.2058711,87311.0,87310.0,0.544055]
[1743101772700,0.03404,87311.0,87310.0,0.544055]
[1743101773004,0.00064,87311.0,87310.0,0.544055]
[1743101774704,8e-05,87312.0,87311.0,0.1145537]
[1743101774894,8e-05,87312.0,87311.0,0.1151937]
[1743101775089,8e-05,87312.0,87311.0,0.1854937]
[1743101775294,0.1145389,87323.0,87318.0,0.1145445]
[1743101775494,0.0572682,87325.0,87318.0,0.4759845]
[1743101775495,0.0008118,87319.0,87318.0,0.4759845]
[1743101775696,0.0008118,87319.0,87318.0,0.5462845]
[1743101776203,0.0008118,87319.0,87318.0,0.55763545]
[1743101776697,0.0008118,87319.0,87318.0,0.5462845]
[1743101776898,0.115355,87319.0,87318.0,0.5462845]
[1743101777093,0.150055,87319.0,87318.0,0.5462845]
[1743101777307,0.0355118,87319.0,87318.0,0.5462845]
[1743101777506,0.0348718,87319.0,87318.0,0.5462845]
[1743101778805,8e-05,87325.0,87318.0,0.4890118]
[1743101779004,0.00064,87325.0,87324.0,0.1145366]
[1743101779305,0.0328,87334.0,87333.0,0.1145248]
[1743101779508,0.03344,87334.0,87333.0,0.1151248]
[1743101780010,0.1479635,87334.0,87333.0,0.1837248]
[1743101781004,0.1519635,87334.0,87333.0,0.1837248]
[1743101781809,0.03744,87334.0,87333.0,0.1837248]
[1743101782011,0.04044,87334.0,87333.0,0.1837248]
[1743101782308,0.00764,87334.0,87333.0,0.1837248]
[1743101782505,0.007,87334.0,87333.0,0.1837248]
[1743101782700,0.00764,87334.0,87333.0,0.1837248]
[1743101783296,0.00772,87334.0,87333.0,0.1837248]
[1743101783905,0.007,87334.0,87333.0,0.1837248]
[1743101784608,8e-05,87341.0,87334.0,0.0572613]
[1743101784802,0.0001718,87342.0,87341.0,0.1145143]
[1743101785004,0.0001718,87342.0,87341.0,0.1852143]
[1743101785411,0.1153248,87342.0,87341.0,0.1852143]
[1743101785912,0.1845248,87342.0,87341.0,0.1852143]
[1743101786109,0.1895248,87342.0,87341.0,0.1852143]
[1743101787304,0.0750118,87342.0,87341.0,0.1852143]
[1743101787503,0.0743718,87342.0,87341.0,0.1852143]
[1743101787812,0.0800918,87342.0,87341.0,0.19665599]
[1743101788311,0.0800518,87342.0,87341.0,0.19665599]
[1743101788511,0.0793718,87342.0,87341.0,0.19665599]
[1743101788806,0.0800918,87342.0,87341.0,0.19665599]
[1743101789907,0.0793718,87342.0,87341.0,0.19665599]
[1743101790298,0.0800518,87342.0,87341.0,0.19665599]
[1743101790498,0.0108518,87342.0,87341.0,0.19665599]
[1743101790705,0.03248,87346.0,87345.0,0.1145091]
[1743101790906,0.0332,87346.0,87345.0,0.5450291]
[1743101791106,0.03248,87346.0,87345.0,0.5450291]
[1743101791307,0.0324,87346.0,87345.0,0.5450291]
[1743101792717,0.1469078,87346.0,87345.0,0.5450291]
[1743101792907,0.1579078,87346.0,87345.0,0.5450291]
[1743101793104,0.1935278,87346.0,87345.0,0.5450291]
[1743101793515,0.1935278,87346.0,87345.0,0.9058291]
[1743101796313,0.07902,87346.0,87345.0,0.9058291]
[1743101796713,0.0783,87346.0,87345.0,0.9058291]
[1743101796922,0.1928078,87346.0,87345.0,0.9058291]
[1743101797119,0.1935678,87346.0,87345.0,0.9058291]
[1743101798123,0.07906,87346.0,87345.0,0.9058291]
[1743101798623,0.1935678,87346.0,87345.0,0.9058291]
[1743101798813,0.0783,87346.0,87345.0,0.9058291]
[1743101799013,0.07902,87346.0,87345.0,0.9058291]
[1743101799414,0.0783,87346.0,87345.0,0.9058291]
[1743101799615,0.07902,87346.0,87345.0,0.9058291]
[1743101799814,0.1935278,87346.0,87345.0,0.9058291]
[1743101801525,0.1935278,87346.0,87345.0,0.1498291]
[1743101801730,0.1935278,87346.0,87345.0,0.1152291]
[1743101803420,0.20479093,87346.0,87345.0,0.1152291]
[1743101809734,0.20479093,87346.0,87345.0,0.00072]
[1743101809935,0.1717669,87345.0,87342.0,0.1717652]
[1743101810125,0.1152704,87345.0,87344.0,0.1145096]
[1743101810326,0.1485704,87345.0,87344.0,0.1152296]
[1743101811134,0.1525704,87345.0,87344.0,0.1152296]
[1743101811531,0.1575704,87345.0,87344.0,0.1152296]
[1743101811739,0.1585704,87345.0,87344.0,0.00072]
[1743101811940,0.1585704,87345.0,87344.0,0.1152304]
[1743101812238,0.1595704,87345.0,87344.0,0.1152304]
[1743101815831,0.1595704,87345.0,87344.0,0.00072]
[1743101816037,0.0572598,87338.0,87335.0,0.37497547]
[1743101816237,0.1145209,87336.0,87335.0,0.37569547]
[1743101816431,0.1152809,87336.0,87335.0,0.37569547]
[1743101816632,0.1511809,87336.0,87335.0,0.37569547]
[1743101817336,0.1511809,87336.0,87335.0,0.20391547]
[1743101817932,0.1541809,87336.0,87335.0,0.20391547]
[1743101818430,0.1581809,87336.0,87335.0,0.20391547]
[1743101818831,0.1145261,87332.0,87326.0,0.33988253]
[1743101819136,0.4759661,87332.0,87331.0,0.27342422]
[1743101819336,0.5106661,87332.0,87331.0,0.00064]
[1743101819538,0.1145327,87327.0,87326.0,0.20439008]
[1743101819741,0.22673271,87327.0,87326.0,0.20499008]
[1743101820042,0.26143271,87327.0,87326.0,0.20499008]
[1743101820237,0.37593893,87327.0,87326.0,0.20499008]
[1743101820837,0.1145392,87322.0,87321.0,0.27278422]
[1743101821038,0.4763392,87322.0,87321.0,0.27338422]
[1743101821538,0.5476392,87322.0,87321.0,0.27338422]
[1743101822235,0.55924678,87322.0,87321.0,0.27338422]
[1743101822429,0.30976678,87322.0,87321.0,0.27338422]
[1743101822631,0.30976678,87322.0,87321.0,0.38792482]
[1743101823636,0.30976678,87322.0,87321.0,0.1848406]
[1743101826333,0.30976678,87322.0,87321.0,0.0364]
[1743101826738,0.30976678,87322.0,87321.0,0.0358]
[1743101826946,0.30976678,87322.0,87321.0,0.0703]
[1743101827139,0.30976678,87322.0,87321.0,0.1848406]
[1743101827346,0.30976678,87322.0,87321.0,0.1854806]
[1743101828337,0.19844678,87322.0,87321.0,0.1854806]
[1743101828547,0.1868392,87322.0,87321.0,0.2193806]
[1743101828746,0.1521392,87322.0,87321.0,0.2193806]
[1743101829844,0.001,87322.0,87321.0,0.2193806]
[1743101830051,0.001,87322.0,87321.0,0.24549816]
[1743101830451,0.1145383,87323.0,87322.0,0.1145392]
[1743101830640,0.1145383,87323.0,87322.0,0.12932917]
[1743101830843,0.1145383,87323.0,87322.0,0.19772917]
[1743101831852,0.5475383,87323.0,87322.0,0.04926888]
[1743101832153,0.1145497,87314.0,87313.0,0.2292724]
[1743101832545,0.2223497,87314.0,87313.0,0.2292724]
[1743101832944,0.2223497,87314.0,87313.0,0.0001718]
[1743101833251,0.5831497,87314.0,87313.0,0.0021718]
[1743101833452,0.5831497,87314.0,87313.0,0.0725718]
[1743101834352,0.5831497,87314.0,87313.0,0.1871228]
[1743101834555,0.5831497,87314.0,87313.0,0.20183455]
[1743101834851,0.5831497,87314.0,87313.0,0.1871228]
[1743101835447,0.5831497,87314.0,87313.0,0.2234628]
[1743101835448,0.22338971,87314.0,87313.0,0.2234628]
[1743101835646,0.18778971,87314.0,87313.0,0.2234628]
[1743101836046,0.18778971,87314.0,87313.0,0.23821239]
[1743101836550,0.15138971,87314.0,87313.0,0.23821239]
[1743101837555,0.18768971,87314.0,87313.0,0.25341559]
[1743101838555,0.18768971,87314.0,87313.0,0.23821239]
[1743101839051,0.18768971,87314.0,87313.0,0.25342306]
[1743101839450,0.18768971,87314.0,87313.0,0.21772306]
[1743101839946,0.18768971,87314.0,87313.0,0.03477206]
[1743101840153,0.1145668,87301.0,87300.0,0.4753652]
[1743101840359,0.1155668,87301.0,87300.0,0.5905315]
[1743101840552,0.1495668,87301.0,87300.0,0.5905315]
[1743101841358,0.1849668,87301.0,87300.0,0.5905315]
[1743101842265,0.1849668,87301.0,87300.0,0.5935315]
[1743101842459,0.1849668,87301.0,87300.0,0.5985315]
[1743101844366,0.1155668,87301.0,87300.0,0.5985315]
[1743101845469,0.1521668,87301.0,87300.0,0.5985315]
[1743101846669,0.001,87301.0,87300.0,0.5985315]
[1743101846861,0.1145668,87301.0,87300.0,0.5985315]
[1743101847066,0.11560681,87301.0,87300.0,0.5985315]
[1743101848166,0.00104001,87301.0,87300.0,0.5985315]
[1743101848367,8e-05,87303.0,87302.0,0.1145655]
[1743101848672,8e-05,87303.0,87302.0,0.1506455]
[1743101848872,8e-05,87303.0,87302.0,0.1877455]
[1743101849061,0.00108,87303.0,87302.0,0.1877455]
[1743101849263,0.114559,87307.0,87306.0,0.1145602]
[1743101849462,0.114559,87307.0,87306.0,0.1853602]
[1743101849463,0.115559,87307.0,87306.0,0.1853602]
[1743101850464,0.115559,87307.0,87306.0,0.1893602]
[1743101850760,0.001,87307.0,87306.0,0.1893602]
[1743101850962,0.0572788,87308.0,87307.0,0.0572794]
[1743101851167,0.0582788,87308.0,87307.0,0.13928262]
[1743101851573,0.001,87308.0,87307.0,0.13928262]
[1743101851770,0.1155576,87308.0,87307.0,0.1280794]
[1743101851971,0.1505576,87308.0,87307.0,0.1310794]
[1743101852270,0.1505576,87308.0,87307.0,0.52123197]
[1743101852662,0.1505576,87308.0,87307.0,0.53598689]
[1743101852862,0.1505576,87308.0,87307.0,0.52449433]
[1743101853473,0.1857576,87308.0,87307.0,0.52449433]
[1743101853679,0.2225576,87308.0,87307.0,0.16369433]
[1743101854475,0.2225576,87308.0,87307.0,0.11283941]
[1743101856177,0.2225576,87308.0,87307.0,0.12757996]
[1743101857170,0.2225576,87308.0,87307.0,0.03620056]
[1743101857370,0.2225576,87308.0,87307.0,0.03560056]
[1743101857575,0.2225576,87308.0,87307.0,0.02138055]
[1743101858280,0.1145747,87295.0,87294.0,0.27278422]
[1743101858485,0.1145747,87295.0,87294.0,0.40290415]
[1743101858778,0.11577471,87295.0,87294.0,0.40290415]
[1743101858975,0.18707471,87295.0,87294.0,0.40290415]
[1743101859385,0.18807471,87295.0,87294.0,0.40590415]
[1743101859575,0.18907471,87295.0,87294.0,0.41090415]
[1743101859979,0.18807471,87295.0,87294.0,0.41090415]
[1743101860579,0.18807471,87295.0,87294.0,0.29632815]
[1743101860883,0.18807471,87295.0,87294.0,0.41090415]
[1743101861174,0.19962063,87295.0,87294.0,0.29632815]
[1743101861373,0.19862063,87295.0,87294.0,0.0036]
[1743101861564,0.19862063,87295.0,87294.0,0.0066]
[1743101862279,0.19862063,87295.0,87294.0,0.121176]
[1743101862475,0.19862063,87295.0,87294.0,0.0066]
[1743101862778,0.19862063,87295.0,87294.0,0.006]
[1743101864070,0.1145773,87293.0,87292.0,0.0001718]
[1743101864269,0.1125917,87282.0,87281.0,0.2651825]
[1743101864466,0.1145887,87285.0,87284.0,0.1145891]
[1743101864682,0.1158687,87285.0,87284.0,0.1152691]
[1743101864881,0.1158687,87285.0,87284.0,0.1853691]
[1743101865380,0.1128687,87285.0,87284.0,0.1853691]
[1743101865582,0.1158678,87285.0,87284.0,0.1853691]
[1743101865775,0.00128,87285.0,87284.0,0.2196691]
[1743101865976,8e-05,87286.0,87285.0,0.1145878]
[1743101866180,0.1145847,87288.0,87287.0,0.1145852]
[1743101866475,0.00149181,87293.0,87292.0,0.1145786]
[1743101866776,0.11718912,87293.0,87292.0,0.1152186]
[1743101867082,0.11594911,87293.0,87292.0,0.1853186]
[1743101869179,0.15124911,87293.0,87292.0,0.1853186]
[1743101870771,0.15124911,87293.0,87292.0,0.00064]
[1743101871179,0.1145852,87289.0,87288.0,0.1718735]
[1743101871384,0.11578521,87289.0,87288.0,0.0578917]
[1743101871683,0.18418521,87289.0,87288.0,0.0572917]
[1743101871979,0.18418521,87289.0,87288.0,0.0359]
[1743101872175,0.18418521,87289.0,87288.0,0.1504839]
[1743101872977,0.18418521,87289.0,87288.0,0.0359]
[1743101873376,0.18418521,87289.0,87288.0,0.0353]
[1743101873977,0.18418521,87289.0,87288.0,0.1498839]
[1743101874175,0.18418521,87289.0,87288.0,0.00068]
[1743101874482,0.057293,87287.0,87283.0,0.1145898]
[1743101874681,0.1145904,87284.0,87283.0,0.1151898]
[1743101874881,0.1145904,87284.0,87283.0,0.2297778]
[1743101875085,0.11579041,87284.0,87283.0,0.2297778]
[1743101875280,0.1489904,87284.0,87283.0,0.2291778]
[1743101875590,0.16046836,87284.0,87283.0,0.2291778]
[1743101875979,0.1145917,87282.0,87281.0,0.1145914]
[1743101876180,0.1718929,87280.0,87279.0,0.1145946]
[1743101876375,0.1718929,87280.0,87279.0,0.1490946]
[1743101876885,0.1718929,87280.0,87279.0,0.1490957]
[1743101877278,0.1718929,87280.0,87279.0,0.0345]
[1743101877485,0.1728929,87280.0,87279.0,0.1490957]
[1743101878888,0.1738929,87280.0,87279.0,0.1490957]
[1743101879589,0.0592972,87280.0,87279.0,0.1490957]
[1743101880191,0.06049721,87280.0,87279.0,0.1496957]
[1743101880490,0.00320001,87280.0,87279.0,0.1496957]
[1743101880691,0.074,87280.0,87279.0,0.1496957]
[1743101880990,0.07520001,87280.0,87279.0,0.1496957]
[1743101881492,0.18979441,87280.0,87279.0,0.1496957]
[1743101882879,0.18979441,87280.0,87279.0,0.0006]
[1743101883084,0.1146075,87270.0,87269.0,0.1489088]
[1743101883289,0.1146127,87266.0,87265.0,0.27338422]
[1743101883488,0.1160927,87266.0,87265.0,0.38859832]
[1743101883688,0.2222927,87266.0,87265.0,0.38799832]
[1743101883886,0.2222927,87266.0,87265.0,0.27338422]
[1743101884786,0.23093539,87266.0,87265.0,0.38799832]
[1743101884987,0.23093539,87266.0,87265.0,0.27338422]
[1743101885294,0.24236045,87266.0,87265.0,0.38799832]
[1743101885494,0.24236045,87266.0,87265.0,0.1152141]
[1743101885794,0.114618,87263.0,87262.0,0.057309]
[1743101885986,0.11601801,87263.0,87262.0,0.057909]
[1743101886182,0.18511801,87263.0,87262.0,0.057909]
[1743101886588,0.18511801,87263.0,87262.0,0.0006]
[1743101886589,0.54591801,87263.0,87262.0,0.0006]
[1743101886999,0.1146233,87258.0,87257.0,0.2086299]
[1743101887299,0.11602331,87258.0,87257.0,0.1725299]
[1743101887487,0.18512331,87258.0,87257.0,0.1725299]
[1743101887683,0.18512331,87258.0,87257.0,0.0006]
[1743101888799,0.18512331,87258.0,87257.0,0.1152246]
[1743101889101,0.29644331,87258.0,87257.0,0.1152246]
[1743101889604,0.29644331,87258.0,87257.0,0.1486246]
[1743101891303,0.18512331,87258.0,87257.0,0.1486246]
[1743101891798,0.07050001,87258.0,87257.0,0.1486246]
[1743101893192,0.07050001,87258.0,87257.0,0.1853246]
[1743101893403,0.18512331,87258.0,87257.0,0.1853246]
[1743101894199,0.03540001,87258.0,87257.0,0.1853246]
[1743101894505,0.15002331,87258.0,87257.0,0.1853246]
[1743101894897,0.18602331,87258.0,87257.0,0.1853246]
[1743101896604,0.15002331,87258.0,87257.0,0.1853246]
[1743101896806,0.18602331,87258.0,87257.0,0.1853246]
[1743101905403,0.03540001,87258.0,87257.0,0.1853246]
[1743101906005,0.15002331,87258.0,87257.0,0.1853246]
[1743101906802,0.18572331,87258.0,87257.0,0.1853246]
[1743101907605,0.18572331,87258.0,87257.0,0.1519246]
[1743101908006,0.18572331,87258.0,87257.0,0.1866246]
[1743101911416,0.18572331,87258.0,87257.0,0.1519246]
[1743101912818,0.18572331,87258.0,87257.0,0.1857246]
[1743101913020,0.15002331,87258.0,87257.0,0.1857246]
[1743101914611,0.03540001,87258.0,87257.0,0.1857246]
[1743101914911,0.15002331,87258.0,87257.0,0.1857246]
[1743101915315,0.03540001,87258.0,87257.0,0.1857246]
[1743101916213,0.15002331,87258.0,87257.0,0.1857246]
[1743101916410,0.03540001,87258.0,87257.0,0.1857246]
[1743101916619,0.15002331,87258.0,87257.0,0.1857246]
[1743101917117,0.03540001,87258.0,87257.0,0.1857246]
[1743101917311,0.15002331,87258.0,87257.0,0.1857246]
[1743101919010,0.25313614,87258.0,87257.0,0.1857246]
[1743101922336,0.28573614,87258.0,87257.0,0.1857246]
[1743101926639,0.18262331,87258.0,87257.0,0.1857246]
[1743101927234,0.18262331,87258.0,87257.0,0.0711]
[1743101927441,0.18262331,87258.0,87257.0,0.1857246]
[1743101931842,0.03540001,87258.0,87257.0,0.1857246]
[1743101932043,8e-05,87259.0,87258.0,0.1146233]
[1743101932243,0.00144,87259.0,87258.0,0.1510633]
[1743101932439,0.00144,87259.0,87258.0,0.2198633]
[1743101935051,0.00144,87259.0,87258.0,0.5806633]
[1743101935247,0.10320736,87260.0,87259.0,0.1146219]
[1743101935447,0.10320736,87260.0,87259.0,0.1152219]
[1743101935755,0.10320736,87260.0,87259.0,0.1812219]
[1743101936047,0.10320736,87260.0,87259.0,0.5420219]
[1743101936452,0.10460737,87260.0,87259.0,0.5420219]
[1743101937351,0.21922797,87260.0,87259.0,0.5420219]
[1743101937747,0.14870061,87260.0,87259.0,0.5420219]
[1743101938442,0.18330061,87260.0,87259.0,0.5420219]
[1743101939252,0.18330061,87260.0,87259.0,0.5094219]
[1743101939554,0.18330061,87260.0,87259.0,0.4760219]
[1743101941149,0.18330061,87260.0,87259.0,0.1152219]
[1743101941345,0.18330061,87260.0,87259.0,0.0006]
[1743101941546,0.1146311,87252.0,87251.0,0.0573159]
[1743101941854,0.1146351,87249.0,87248.0,0.45451763]
[1743101942041,0.11603511,87249.0,87248.0,0.34048253]
[1743101942246,0.18023511,87249.0,87248.0,0.34048253]
[1743101942441,0.18023511,87249.0,87248.0,0.45511893]
[1743101944849,0.18023511,87249.0,87248.0,0.1152364]
[1743101945347,0.19185945,87249.0,87248.0,0.1152364]
[1743101945945,0.19185945,87249.0,87246.0,0.20544138]
[1743101945946,0.43802435,87249.0,87246.0,0.20544138]
[1743101946149,0.0573195,87246.0,87243.0,0.1146426]
[1743101946457,0.1146416,87244.0,87243.0,0.1146426]
[1743101946655,0.1146416,87244.0,87242.0,0.33121728]
[1743101946656,0.114643,87243.0,87242.0,0.27389518]
[1743101946851,0.18028301,87243.0,87242.0,0.27389518]
[1743101947549,0.18028301,87243.0,87242.0,0.38853948]
[1743101947956,0.18028301,87243.0,87242.0,0.27389518]
[1743101948959,0.18028301,87243.0,87242.0,8e-05]
[1743101949362,0.18028301,87243.0,87242.0,0.1147243]
[1743101949760,0.18028301,87243.0,87242.0,0.1761243]
[1743101950358,0.18028301,87243.0,87242.0,8e-05]
[1743101950649,0.18028301,87243.0,87242.0,0.1147243]
[1743101950955,0.18028301,87243.0,87242.0,0.1146443]
[1743101951157,0.18028301,87243.0,87242.0,0.1456443]
[1743101951360,0.18028301,87243.0,87242.0,0.1760443]
[1743101955767,0.18028301,87243.0,87242.0,0.2077443]
[1743101958669,0.18028301,87243.0,87242.0,0.21614429]
[1743101959469,0.03504001,87243.0,87242.0,0.21614429]
[1743101959767,0.03496001,87243.0,87242.0,0.21614429]
[1743101960275,0.14960301,87243.0,87242.0,0.21614429]
[1743101960777,0.14960301,87243.0,87242.0,0.18444429]
[1743101960976,0.18180301,87243.0,87242.0,0.18444429]
[1743101963362,0.18180301,87243.0,87242.0,0.1760443]
[1743101963771,0.18180301,87243.0,87242.0,0.18444429]
[1743101979071,0.21370301,87243.0,87242.0,0.18444429]
[1743101981978,0.18180301,87243.0,87242.0,0.18444429]
[1743101984684,0.28496155,87243.0,87242.0,0.18444429]
[1743101985986,0.18180301,87243.0,87242.0,0.18444429]
[1743101986980,0.18180301,87243.0,87242.0,0.15404429]
[1743101988284,0.18180301,87243.0,87242.0,0.00839999]
[1743101988789,0.1146627,87228.0,87227.0,0.0573314]
[1743101989089,0.11622271,87228.0,87227.0,0.0573314]
[1743101989586,0.14822271,87228.0,87227.0,0.0573314]
[1743101990079,0.21332271,87228.0,87227.0,0.1229314]
[1743101991278,0.11622271,87228.0,87227.0,0.1229314]
[1743101991483,0.14942271,87228.0,87227.0,0.1229314]
[1743101992182,0.18002271,87228.0,87227.0,0.1229314]
[1743101994391,0.18002271,87228.0,87227.0,0.53460157]
[1743101995284,0.06536001,87228.0,87227.0,0.53460157]
[1743101995488,0.0638,87228.0,87227.0,0.53460157]
[1743101996184,0.1784627,87228.0,87227.0,0.53460157]
[1743101996383,0.18002271,87228.0,87227.0,0.53460157]
[1743101996584,0.1784627,87228.0,87227.0,0.53460157]
[1743101996782,0.18002271,87228.0,87227.0,0.53460157]
[1743101998592,0.18002271,87228.0,87227.0,0.1229314]
[1743102000986,0.18002271,87228.0,87227.0,0.0905314]
[1743102001182,0.114664,87227.0,87225.0,0.4754658]
[1743102001384,0.1784653,87226.0,87225.0,0.3608]
[1743102001591,0.18002531,87226.0,87225.0,0.4754656]
[1743102001995,0.18002531,87226.0,87225.0,0.3608]
[1743102002501,0.18002531,87226.0,87225.0,0.4754666]
[1743102003394,0.18002531,87226.0,87225.0,0.3608]
[1743102003692,0.1146679,87224.0,87223.0,8e-05]
[1743102003997,0.11622791,87224.0,87223.0,8e-05]
[1743102004201,0.17932791,87224.0,87223.0,8e-05]
[1743102004399,0.17932791,87224.0,87223.0,0.1147492]
[1743102004896,0.06566001,87224.0,87223.0,0.1147492]
[1743102005088,0.033,87224.0,87223.0,0.2092492]
[1743102005284,0.13736209,87241.0,87235.0,0.1146535]
[1743102005488,0.10475348,87236.0,87235.0,0.4754535]
[1743102005691,0.10475348,87236.0,87235.0,0.5699535]
[1743102005893,0.10475348,87236.0,87235.0,0.58117344]
[1743102006093,0.10475348,87236.0,87235.0,0.5699535]